[Event "Titled Tuesday Blitz June 21 Late 2022"]
[White "Rustemov, Alexander"]
[Black "Zhurbinsky, David"]
[WhiteFideId "4119002"]
[BlackFideId "2072904"]
[WhiteElo "2732"]
[BlackElo "2575"]
[Result "1-0"]
[Round "09"]
[TimeControl "180+1"]
[Date "2022.06.21"]
[WhiteClock "0:00:41"]
[BlackClock "0:00:06"]

1. d4 {[%clk 0:03:00]}  Nf6 {[%clk 0:02:59]} 2. c4 {[%clk 0:03:01]}  e6 {[%clk 0:03:00]} 3. Nf3 {[%clk 0:03:01]}  Bb4+ {[%clk 0:02:59]} 4. Bd2 {[%clk 0:03:01]}  Qe7 {[%clk 0:02:59]} 5. g3 {[%clk 0:03:01]}  O-O {[%clk 0:02:59]} 6. Bg2 {[%clk 0:03:01]}  d5 {[%clk 0:02:58]} 7. Qb3 {[%clk 0:02:56]}  Bxd2+ {[%clk 0:02:58]} 8. Nbxd2 {[%clk 0:02:57]}  a6 {[%clk 0:02:56]} 9. O-O {[%clk 0:02:52]}  dxc4 {[%clk 0:02:55]} 10. Nxc4 {[%clk 0:02:51]}  b5 {[%clk 0:02:53]} 11. Na5 {[%clk 0:02:49]}  c5 {[%clk 0:02:43]} 12. Ne5 {[%clk 0:02:42]}  c4 {[%clk 0:02:31]} 13. Qc2 {[%clk 0:02:09]}  Nd5 {[%clk 0:02:27]} 14. b3 {[%clk 0:02:04]}  cxb3 {[%clk 0:01:51]} 15. axb3 {[%clk 0:02:05]}  Bb7 {[%clk 0:01:31]} 16. Nxb7 {[%clk 0:02:04]}  Qxb7 {[%clk 0:01:31]} 17. Rfc1 {[%clk 0:02:04]}  Nd7 {[%clk 0:01:27]} 18. Qc6 {[%clk 0:02:00]}  Qxc6 {[%clk 0:01:20]} 19. Nxc6 {[%clk 0:01:58]}  N7f6 {[%clk 0:01:12]} 20. e4 {[%clk 0:01:51]}  Nb6 {[%clk 0:01:11]} 21. Ra2 {[%clk 0:01:36]}  Kh8 {[%clk 0:00:59]} 22. Rca1 {[%clk 0:01:31]}  Rfc8 {[%clk 0:00:52]} 23. Ne5 {[%clk 0:01:30]}  Kg8 {[%clk 0:00:33]} 24. Rxa6 {[%clk 0:01:23]}  Rab8 {[%clk 0:00:32]} 25. Ra7 {[%clk 0:01:12]}  Rc3 {[%clk 0:00:28]} 26. Rxf7 {[%clk 0:01:04]}  Ng4 {[%clk 0:00:21]} 27. Raa7 {[%clk 0:00:58]}  Nxe5 {[%clk 0:00:15]} 28. dxe5 {[%clk 0:00:59]}  Rxb3 {[%clk 0:00:07]} 29. Rxg7+ {[%clk 0:00:59]}  Kf8 {[%clk 0:00:06]} 30. Rxh7 {[%clk 0:00:58]}  Kg8 {[%clk 0:00:06]} 31. Bh3 {[%clk 0:00:53]}  Re8 {[%clk 0:00:04]} 32. Rag7+ {[%clk 0:00:52]}  Kf8 {[%clk 0:00:04]} 33. Rb7 {[%clk 0:00:53]}  Nd7 {[%clk 0:00:02]} 34. Rbxd7 {[%clk 0:00:51]}  Kg8 {[%clk 0:00:02]} 35. Rdg7+ {[%clk 0:00:50]}  Kf8 {[%clk 0:00:02]} 36. Rb7 {[%clk 0:00:49]}  Kg8 {[%clk 0:00:02]} 37. Rh6 {[%clk 0:00:44]}  Rb1+ {[%clk 0:00:02]} 38. Kg2 {[%clk 0:00:43]}  b4 {[%clk 0:00:02]} 39. Bxe6+ {[%clk 0:00:43]}  Rxe6 {[%clk 0:00:03]} 40. Rxe6 {[%clk 0:00:42]}  Kf8 {[%clk 0:00:04]} 41. Ra6 {[%clk 0:00:42]}  Ra1 {[%clk 0:00:05]} 42. Rxa1 {[%clk 0:00:41]}  b3 {[%clk 0:00:06]} 43. Ra8# {[%clk 0:00:41]} 1-0


[Site "https://www.chess.com"]

[Event "Titled Tuesday Blitz June 21 Late 2022"]
[White "Rychkov, Roman"]
[Black "Roberson, Peter T"]
[WhiteFideId "30985595"]
[BlackFideId "412384"]
[WhiteElo "2320"]
[BlackElo "2346"]
[Result "1-0"]
[Round "09"]
[TimeControl "180+1"]
[Date "2022.06.22"]
[WhiteClock "0:00:23"]
[BlackClock "0:00:08"]

1. e4 {[%clk 0:03:00]}  e5 {[%clk 0:02:59]} 2. Nf3 {[%clk 0:03:01]}  Nc6 {[%clk 0:02:59]} 3. d4 {[%clk 0:03:01]}  exd4 {[%clk 0:02:59]} 4. Nxd4 {[%clk 0:03:02]}  Nf6 {[%clk 0:02:59]} 5. Nxc6 {[%clk 0:03:02]}  bxc6 {[%clk 0:02:57]} 6. e5 {[%clk 0:03:03]}  Qe7 {[%clk 0:02:57]} 7. Qe2 {[%clk 0:03:03]}  Nd5 {[%clk 0:02:58]} 8. c4 {[%clk 0:03:04]}  Ba6 {[%clk 0:02:58]} 9. b3 {[%clk 0:03:05]}  d6 {[%clk 0:02:41]} 10. g3 {[%clk 0:03:01]}  dxe5 {[%clk 0:02:10]} 11. Bg2 {[%clk 0:02:58]}  Qd6 {[%clk 0:02:03]} 12. O-O {[%clk 0:02:41]}  Be7 {[%clk 0:02:03]} 13. Rd1 {[%clk 0:02:41]}  Qf6 {[%clk 0:02:03]} 14. Qe4 {[%clk 0:02:17]}  Bb7 {[%clk 0:01:37]} 15. cxd5 {[%clk 0:02:11]}  cxd5 {[%clk 0:01:38]} 16. Qc2 {[%clk 0:01:51]}  c6 {[%clk 0:01:31]} 17. Bb2 {[%clk 0:01:50]}  Qe6 {[%clk 0:01:26]} 18. Re1 {[%clk 0:01:45]}  f6 {[%clk 0:01:25]} 19. f4 {[%clk 0:01:10]}  e4 {[%clk 0:01:25]} 20. Nd2 {[%clk 0:01:11]}  O-O {[%clk 0:01:22]} 21. Nxe4 {[%clk 0:01:10]}  dxe4 {[%clk 0:01:16]} 22. Bxe4 {[%clk 0:01:11]}  Qd6 {[%clk 0:00:34]} 23. Bxh7+ {[%clk 0:00:56]}  Kh8 {[%clk 0:00:34]} 24. Rac1 {[%clk 0:00:43]}  c5 {[%clk 0:00:24]} 25. Bg6 {[%clk 0:00:30]}  f5 {[%clk 0:00:10]} 26. Bxf5 {[%clk 0:00:29]}  Rad8 {[%clk 0:00:09]} 27. Qe2 {[%clk 0:00:26]}  Rxf5 {[%clk 0:00:07]} 28. Qxe7 {[%clk 0:00:24]}  Qd5 {[%clk 0:00:08]} 29. Qxg7# {[%clk 0:00:23]} 1-0


[Site "https://www.chess.com"]

[Event "Titled Tuesday Blitz June 21 Late 2022"]
[White "Sadilek, Peter"]
[Black "De La Colina, Nicolas"]
[WhiteFideId "1616439"]
[BlackFideId "30946921"]
[WhiteElo "2145"]
[BlackElo "2046"]
[Result "0-1"]
[Round "09"]
[TimeControl "180+1"]
[Date "2022.06.22"]
[WhiteClock "0:00:39"]
[BlackClock "0:00:12"]

1. d4 {[%clk 0:02:58]}  Nf6 {[%clk 0:02:57]} 2. Bg5 {[%clk 0:02:57]}  e6 {[%clk 0:02:55]} 3. e4 {[%clk 0:02:57]}  c5 {[%clk 0:02:55]} 4. d5 {[%clk 0:02:57]}  d6 {[%clk 0:02:53]} 5. Nc3 {[%clk 0:02:50]}  Be7 {[%clk 0:02:51]} 6. Bb5+ {[%clk 0:02:50]}  Bd7 {[%clk 0:02:51]} 7. dxe6 {[%clk 0:02:50]}  fxe6 {[%clk 0:02:50]} 8. e5 {[%clk 0:02:51]}  dxe5 {[%clk 0:02:49]} 9. Qe2 {[%clk 0:02:52]}  Nc6 {[%clk 0:02:31]} 10. O-O-O {[%clk 0:02:48]}  Qc7 {[%clk 0:02:22]} 11. Nf3 {[%clk 0:02:17]}  Nd4 {[%clk 0:02:10]} 12. Qc4 {[%clk 0:01:57]}  O-O-O {[%clk 0:01:56]} 13. Bxd7+ {[%clk 0:01:53]}  Rxd7 {[%clk 0:01:57]} 14. Bxf6 {[%clk 0:01:48]}  gxf6 {[%clk 0:01:52]} 15. Nb5 {[%clk 0:01:34]}  Nxb5 {[%clk 0:01:37]} 16. Qxb5 {[%clk 0:01:35]}  Rhd8 {[%clk 0:01:34]} 17. Rxd7 {[%clk 0:01:33]}  Qxd7 {[%clk 0:01:35]} 18. Qc4 {[%clk 0:01:30]}  Qd5 {[%clk 0:01:29]} 19. Qa4 {[%clk 0:01:19]}  f5 {[%clk 0:01:25]} 20. c4 {[%clk 0:01:11]}  Qd3 {[%clk 0:01:04]} 21. Rd1 {[%clk 0:00:56]}  Qxd1+ {[%clk 0:01:02]} 22. Qxd1 {[%clk 0:00:56]}  Rxd1+ {[%clk 0:01:02]} 23. Kxd1 {[%clk 0:00:57]}  Bf6 {[%clk 0:01:01]} 24. b3 {[%clk 0:00:57]}  Kc7 {[%clk 0:00:59]} 25. h3 {[%clk 0:00:56]}  Kd6 {[%clk 0:00:55]} 26. g4 {[%clk 0:00:56]}  e4 {[%clk 0:00:52]} 27. Nd2 {[%clk 0:00:54]}  Ke5 {[%clk 0:00:49]} 28. Ke2 {[%clk 0:00:55]}  Bg5 {[%clk 0:00:44]} 29. Nb1 {[%clk 0:00:55]}  Kd4 {[%clk 0:00:40]} 30. Na3 {[%clk 0:00:54]}  a6 {[%clk 0:00:38]} 31. Nb1 {[%clk 0:00:54]}  f4 {[%clk 0:00:31]} 32. f3 {[%clk 0:00:54]}  e3 {[%clk 0:00:27]} 33. a4 {[%clk 0:00:39]}  h6 {[%clk 0:00:19]} 34. Na3 {[%clk 0:00:37]}  Kc3 {[%clk 0:00:17]} 35. a5 {[%clk 0:00:37]}  Kb2 {[%clk 0:00:15]} 36. Nb5 {[%clk 0:00:37]}  axb5 {[%clk 0:00:14]} 37. cxb5 {[%clk 0:00:38]}  Bd8 {[%clk 0:00:13]} 38. b6 {[%clk 0:00:38]}  Bxb6 {[%clk 0:00:12]} 39. axb6 {[%clk 0:00:39]}  Kxb3 {[%clk 0:00:12]} 0-1


[Site "https://www.chess.com"]

[Event "Titled Tuesday Blitz June 21 Late 2022"]
[White "Sarana, Alexey"]
[Black "Shimanov, Aleksandr"]
[WhiteFideId "24133795"]
[BlackFideId "4198603"]
[WhiteElo "2666"]
[BlackElo "2605"]
[Result "1-0"]
[Round "09"]
[TimeControl "180+1"]
[Date "2022.06.21"]
[WhiteClock "0:00:20"]
[BlackClock "0:00:01"]

1. d4 {[%clk 0:03:00]}  Nf6 {[%clk 0:02:58]} 2. c4 {[%clk 0:03:01]}  e6 {[%clk 0:02:59]} 3. Nc3 {[%clk 0:03:02]}  d5 {[%clk 0:02:59]} 4. cxd5 {[%clk 0:03:02]}  Nxd5 {[%clk 0:03:00]} 5. e4 {[%clk 0:03:02]}  Nxc3 {[%clk 0:03:01]} 6. bxc3 {[%clk 0:03:03]}  c5 {[%clk 0:03:02]} 7. Rb1 {[%clk 0:03:03]}  Be7 {[%clk 0:03:02]} 8. Nf3 {[%clk 0:03:03]}  O-O {[%clk 0:03:01]} 9. h4 {[%clk 0:03:03]}  b6 {[%clk 0:02:58]} 10. h5 {[%clk 0:03:03]}  h6 {[%clk 0:02:57]} 11. Rh3 {[%clk 0:03:01]}  Kh8 {[%clk 0:02:46]} 12. Rg3 {[%clk 0:02:55]}  Nc6 {[%clk 0:02:24]} 13. Bb5 {[%clk 0:02:17]}  Bb7 {[%clk 0:02:20]} 14. Be3 {[%clk 0:02:18]}  cxd4 {[%clk 0:02:14]} 15. cxd4 {[%clk 0:02:17]}  a6 {[%clk 0:01:15]} 16. Bxc6 {[%clk 0:02:13]}  Bxc6 {[%clk 0:01:16]} 17. Bxh6 {[%clk 0:02:12]}  Bf6 {[%clk 0:00:57]} 18. Qc2 {[%clk 0:01:09]}  Rc8 {[%clk 0:00:52]} 19. Bg5 {[%clk 0:00:57]}  Bxg5 {[%clk 0:00:40]} 20. Rxg5 {[%clk 0:00:52]}  f5 {[%clk 0:00:38]} 21. d5 {[%clk 0:00:39]}  Bxd5 {[%clk 0:00:30]} 22. Qb2 {[%clk 0:00:39]}  e5 {[%clk 0:00:09]} 23. exd5 {[%clk 0:00:32]}  Qxd5 {[%clk 0:00:06]} 24. Rd1 {[%clk 0:00:22]}  Qe4+ {[%clk 0:00:05]} 25. Qe2 {[%clk 0:00:22]}  Qb4+ {[%clk 0:00:05]} 26. Kf1 {[%clk 0:00:20]}  e4 {[%clk 0:00:05]} 27. Ne5 {[%clk 0:00:20]}  Rf6 {[%clk 0:00:05]} 28. Kg1 {[%clk 0:00:18]}  Re8 {[%clk 0:00:04]} 29. Ng6+ {[%clk 0:00:17]}  Kh7 {[%clk 0:00:04]} 30. Nf4 {[%clk 0:00:17]}  Rf7 {[%clk 0:00:02]} 31. Qe3 {[%clk 0:00:17]}  Qc5 {[%clk 0:00:02]} 32. Qxc5 {[%clk 0:00:16]}  bxc5 {[%clk 0:00:03]} 33. Rc1 {[%clk 0:00:17]}  Rc8 {[%clk 0:00:03]} 34. Rg3 {[%clk 0:00:17]}  Rb7 {[%clk 0:00:02]} 35. Rgc3 {[%clk 0:00:17]}  Rb2 {[%clk 0:00:03]} 36. Rxc5 {[%clk 0:00:17]}  Rxc5 {[%clk 0:00:02]} 37. Rxc5 {[%clk 0:00:18]}  Rxa2 {[%clk 0:00:03]} 38. Rc7 {[%clk 0:00:19]}  Kh6 {[%clk 0:00:03]} 39. g3 {[%clk 0:00:19]}  a5 {[%clk 0:00:03]} 40. Rc6+ {[%clk 0:00:19]}  Kh7 {[%clk 0:00:03]} 41. Rc5 {[%clk 0:00:18]}  a4 {[%clk 0:00:04]} 42. Rxf5 {[%clk 0:00:19]}  a3 {[%clk 0:00:04]} 43. Ra5 {[%clk 0:00:19]}  Kh6 {[%clk 0:00:04]} 44. g4 {[%clk 0:00:20]}  Kh7 {[%clk 0:00:04]} 45. g5 {[%clk 0:00:20]}  e3 {[%clk 0:00:02]} 46. fxe3 {[%clk 0:00:20]}  Ra1+ {[%clk 0:00:02]} 47. Kg2 {[%clk 0:00:20]}  a2 {[%clk 0:00:03]} 48. Ra6 {[%clk 0:00:19]}  Kg8 {[%clk 0:00:02]} 49. Ra7 {[%clk 0:00:19]}  Kh8 {[%clk 0:00:02]} 50. g6 {[%clk 0:00:19]}  Rg1+ {[%clk 0:00:01]} 51. Kxg1 {[%clk 0:00:19]}  a1=Q+ {[%clk 0:00:02]} 52. Rxa1 {[%clk 0:00:19]}  Kg8 {[%clk 0:00:01]} 53. Ra8# {[%clk 0:00:20]} 1-0


[Site "https://www.chess.com"]

[Event "Titled Tuesday Blitz June 21 Late 2022"]
[White "Sargsyan, Anna M."]
[Black "Semenenko, Dmytry"]
[WhiteFideId "13308130"]
[BlackFideId "14118645"]
[WhiteElo "2271"]
[BlackElo "2113"]
[Result "1-0"]
[Round "09"]
[TimeControl "180+1"]
[Date "2022.06.21"]
[WhiteClock "0:00:15"]
[BlackClock "0:01:14"]

1. d4 {[%clk 0:02:56]}  d5 {[%clk 0:03:00]} 2. c4 {[%clk 0:02:55]}  c6 {[%clk 0:03:00]} 3. Nf3 {[%clk 0:02:55]}  Nf6 {[%clk 0:03:00]} 4. Nc3 {[%clk 0:02:56]}  dxc4 {[%clk 0:03:00]} 5. a4 {[%clk 0:02:56]}  Bf5 {[%clk 0:03:00]} 6. Ne5 {[%clk 0:02:57]}  Nbd7 {[%clk 0:03:00]} 7. Nxc4 {[%clk 0:02:55]}  Qc7 {[%clk 0:03:01]} 8. g3 {[%clk 0:02:55]}  e5 {[%clk 0:03:01]} 9. dxe5 {[%clk 0:02:53]}  Nxe5 {[%clk 0:03:01]} 10. Bf4 {[%clk 0:02:53]}  Rd8 {[%clk 0:03:01]} 11. Qc1 {[%clk 0:02:11]}  Bd6 {[%clk 0:03:00]} 12. Nxd6+ {[%clk 0:01:28]}  Qxd6 {[%clk 0:03:00]} 13. Bg2 {[%clk 0:01:28]}  O-O {[%clk 0:02:59]} 14. O-O {[%clk 0:01:28]}  a5 {[%clk 0:02:56]} 15. Qe3 {[%clk 0:01:19]}  Nfg4 {[%clk 0:02:55]} 16. Qb6 {[%clk 0:01:20]}  Qb4 {[%clk 0:02:53]} 17. Qxb4 {[%clk 0:01:12]}  axb4 {[%clk 0:02:54]} 18. Ne4 {[%clk 0:01:12]}  Nc4 {[%clk 0:02:47]} 19. b3 {[%clk 0:01:09]}  Na5 {[%clk 0:02:37]} 20. Nd6 {[%clk 0:00:55]}  Be6 {[%clk 0:02:33]} 21. Rab1 {[%clk 0:00:48]}  g5 {[%clk 0:02:31]} 22. Nxb7 {[%clk 0:00:40]}  Nxb7 {[%clk 0:02:28]} 23. Bc7 {[%clk 0:00:40]}  Rd7 {[%clk 0:02:24]} 24. Bb6 {[%clk 0:00:40]}  Bd5 {[%clk 0:02:16]} 25. e4 {[%clk 0:00:37]}  Be6 {[%clk 0:02:14]} 26. Rfc1 {[%clk 0:00:33]}  Rc8 {[%clk 0:02:12]} 27. a5 {[%clk 0:00:29]}  Nd6 {[%clk 0:02:08]} 28. h3 {[%clk 0:00:19]}  Ne5 {[%clk 0:02:06]} 29. a6 {[%clk 0:00:18]}  Nb5 {[%clk 0:02:06]} 30. f4 {[%clk 0:00:14]}  gxf4 {[%clk 0:02:04]} 31. gxf4 {[%clk 0:00:14]}  Nd3 {[%clk 0:02:05]} 32. Rd1 {[%clk 0:00:15]}  Nxf4 {[%clk 0:02:04]} 33. Rxd7 {[%clk 0:00:16]}  Bxd7 {[%clk 0:02:04]} 34. Bf1 {[%clk 0:00:16]}  Nc3 {[%clk 0:02:00]} 35. Ra1 {[%clk 0:00:16]}  Ra8 {[%clk 0:02:00]} 36. a7 {[%clk 0:00:16]}  Nb5 {[%clk 0:01:50]} 37. Rd1 {[%clk 0:00:16]}  Be6 {[%clk 0:01:48]} 38. Bxb5 {[%clk 0:00:15]}  Nd5 {[%clk 0:01:14]} 39. exd5 {[%clk 0:00:14]}  Bxd5 {[%clk 0:01:14]} 40. Rxd5 {[%clk 0:00:13]}  cxd5 {[%clk 0:01:13]} 41. Bc6 {[%clk 0:00:14]}  Rxa7 {[%clk 0:01:14]} 42. Bxa7 {[%clk 0:00:14]}  Kg7 {[%clk 0:01:14]} 43. Bd4+ {[%clk 0:00:15]} 1-0


[Site "https://www.chess.com"]

[Event "Titled Tuesday Blitz June 21 Late 2022"]
[White "Sarkar, Justin"]
[Black "Omariev, Maksim"]
[WhiteFideId "2010011"]
[BlackFideId "4193423"]
[WhiteElo "2020"]
[BlackElo "2466"]
[Result "1-0"]
[Round "09"]
[TimeControl "180+1"]
[Date "2022.06.22"]
[WhiteClock "0:00:37"]
[BlackClock "0:00:10"]

1. d4 {[%clk 0:02:48]}  Nf6 {[%clk 0:02:58]} 2. c4 {[%clk 0:02:48]}  c5 {[%clk 0:02:58]} 3. d5 {[%clk 0:02:40]}  e6 {[%clk 0:02:57]} 4. Nc3 {[%clk 0:02:38]}  exd5 {[%clk 0:02:57]} 5. cxd5 {[%clk 0:02:39]}  d6 {[%clk 0:02:57]} 6. e4 {[%clk 0:02:36]}  g6 {[%clk 0:02:58]} 7. Nf3 {[%clk 0:02:33]}  Bg7 {[%clk 0:02:59]} 8. Bg5 {[%clk 0:02:32]}  h6 {[%clk 0:02:57]} 9. Bh4 {[%clk 0:02:31]}  O-O {[%clk 0:02:57]} 10. Be2 {[%clk 0:02:28]}  Re8 {[%clk 0:02:52]} 11. Nd2 {[%clk 0:02:25]}  Na6 {[%clk 0:02:11]} 12. O-O {[%clk 0:02:24]}  Nc7 {[%clk 0:02:07]} 13. f3 {[%clk 0:02:18]}  a6 {[%clk 0:01:59]} 14. a4 {[%clk 0:02:17]}  b6 {[%clk 0:01:59]} 15. Nc4 {[%clk 0:02:16]}  Rb8 {[%clk 0:01:52]} 16. Rb1 {[%clk 0:02:00]}  b5 {[%clk 0:01:49]} 17. Na5 {[%clk 0:01:52]}  Bd7 {[%clk 0:01:45]} 18. Nc6 {[%clk 0:01:40]}  Bxc6 {[%clk 0:01:44]} 19. dxc6 {[%clk 0:01:41]}  Rb6 {[%clk 0:01:34]} 20. axb5 {[%clk 0:01:30]}  axb5 {[%clk 0:01:35]} 21. Nd5 {[%clk 0:01:10]}  b4 {[%clk 0:00:49]} 22. Nxb6 {[%clk 0:01:07]}  g5 {[%clk 0:00:30]} 23. Bg3 {[%clk 0:01:05]}  Bf8 {[%clk 0:00:24]} 24. Bc4 {[%clk 0:01:01]}  Ne6 {[%clk 0:00:20]} 25. Nd5 {[%clk 0:00:57]}  Nh5 {[%clk 0:00:12]} 26. Bf2 {[%clk 0:00:48]}  Bg7 {[%clk 0:00:10]} 27. g3 {[%clk 0:00:37]} 1-0


[Site "https://www.chess.com"]

[Event "Titled Tuesday Blitz June 21 Late 2022"]
[White "Shapiro, Daniel"]
[Black "Fiol, Fabrice"]
[WhiteFideId "2001780"]
[BlackFideId "611670"]
[WhiteElo "2272"]
[BlackElo "2446"]
[Result "1/2-1/2"]
[Round "09"]
[TimeControl "180+1"]
[Date "2022.06.22"]
[WhiteClock "0:00:06"]
[BlackClock "0:00:15"]

1. d4 {[%clk 0:03:00]}  Nf6 {[%clk 0:02:59]} 2. c4 {[%clk 0:03:00]}  e6 {[%clk 0:02:59]} 3. g3 {[%clk 0:02:59]}  Bb4+ {[%clk 0:02:58]} 4. Nd2 {[%clk 0:02:59]}  O-O {[%clk 0:02:57]} 5. Bg2 {[%clk 0:02:59]}  c5 {[%clk 0:02:55]} 6. a3 {[%clk 0:02:54]}  Bxd2+ {[%clk 0:02:54]} 7. Qxd2 {[%clk 0:02:53]}  cxd4 {[%clk 0:02:51]} 8. Nf3 {[%clk 0:02:50]}  Nc6 {[%clk 0:02:49]} 9. Nxd4 {[%clk 0:02:48]}  d5 {[%clk 0:02:49]} 10. Nxc6 {[%clk 0:02:44]}  bxc6 {[%clk 0:02:48]} 11. O-O {[%clk 0:02:44]}  Rb8 {[%clk 0:02:41]} 12. Rd1 {[%clk 0:02:38]}  Ba6 {[%clk 0:02:40]} 13. cxd5 {[%clk 0:02:27]}  cxd5 {[%clk 0:02:40]} 14. b4 {[%clk 0:02:25]}  Qb6 {[%clk 0:02:29]} 15. Bb2 {[%clk 0:02:20]}  Nd7 {[%clk 0:02:12]} 16. e4 {[%clk 0:02:06]}  Rfd8 {[%clk 0:01:46]} 17. exd5 {[%clk 0:02:01]}  exd5 {[%clk 0:01:34]} 18. Qg5 {[%clk 0:01:49]}  Qg6 {[%clk 0:01:17]} 19. Qxg6 {[%clk 0:01:34]}  hxg6 {[%clk 0:01:18]} 20. Bxd5 {[%clk 0:01:33]}  Nb6 {[%clk 0:01:16]} 21. Bc6 {[%clk 0:01:19]}  Nc4 {[%clk 0:01:06]} 22. Bd4 {[%clk 0:01:16]}  Rbc8 {[%clk 0:00:46]} 23. Ba4 {[%clk 0:00:56]}  Nd6 {[%clk 0:00:34]} 24. Bxa7 {[%clk 0:00:51]}  Ne4 {[%clk 0:00:32]} 25. Rxd8+ {[%clk 0:00:46]}  Rxd8 {[%clk 0:00:33]} 26. Rd1 {[%clk 0:00:46]}  Rc8 {[%clk 0:00:30]} 27. Bd4 {[%clk 0:00:37]}  Be2 {[%clk 0:00:26]} 28. Re1 {[%clk 0:00:34]}  Bf3 {[%clk 0:00:26]} 29. Bd1 {[%clk 0:00:29]}  Rc1 {[%clk 0:00:16]} 30. Bxf3 {[%clk 0:00:23]}  Rxe1+ {[%clk 0:00:16]} 31. Kg2 {[%clk 0:00:24]}  Nd2 {[%clk 0:00:16]} 32. Bc6 {[%clk 0:00:22]}  Rc1 {[%clk 0:00:14]} 33. b5 {[%clk 0:00:20]}  Nc4 {[%clk 0:00:11]} 34. Bd5 {[%clk 0:00:18]}  Nd6 {[%clk 0:00:08]} 35. Be5 {[%clk 0:00:14]}  Nxb5 {[%clk 0:00:08]} 36. a4 {[%clk 0:00:13]}  Nc3 {[%clk 0:00:08]} 37. Bf3 {[%clk 0:00:13]}  Nxa4 {[%clk 0:00:06]} 38. Bf4 {[%clk 0:00:13]}  Ra1 {[%clk 0:00:06]} 39. h4 {[%clk 0:00:13]}  Nc3 {[%clk 0:00:05]} 40. Be3 {[%clk 0:00:13]}  Ra3 {[%clk 0:00:05]} 41. Bd4 {[%clk 0:00:12]}  Nb1 {[%clk 0:00:05]} 42. Be3 {[%clk 0:00:12]}  Nc3 {[%clk 0:00:05]} 43. Bd4 {[%clk 0:00:13]}  Nb5 {[%clk 0:00:06]} 44. Be3 {[%clk 0:00:13]}  Nd6 {[%clk 0:00:06]} 45. Bd5 {[%clk 0:00:13]}  Nf5 {[%clk 0:00:06]} 46. Bf4 {[%clk 0:00:13]}  Kf8 {[%clk 0:00:06]} 47. Be4 {[%clk 0:00:13]}  Ke8 {[%clk 0:00:06]} 48. Bf3 {[%clk 0:00:11]}  Ra4 {[%clk 0:00:06]} 49. Bd5 {[%clk 0:00:10]}  Ra5 {[%clk 0:00:06]} 50. Bc6+ {[%clk 0:00:10]}  Ke7 {[%clk 0:00:06]} 51. Bf3 {[%clk 0:00:10]}  Ra2 {[%clk 0:00:06]} 52. Bd5 {[%clk 0:00:09]}  Ra1 {[%clk 0:00:04]} 53. Be4 {[%clk 0:00:09]}  f6 {[%clk 0:00:05]} 54. Bd5 {[%clk 0:00:09]}  Ra2 {[%clk 0:00:04]} 55. Be4 {[%clk 0:00:08]}  Ra4 {[%clk 0:00:05]} 56. Bd3 {[%clk 0:00:07]}  Ra3 {[%clk 0:00:05]} 57. Be4 {[%clk 0:00:07]}  Ra2 {[%clk 0:00:05]} 58. h5 {[%clk 0:00:07]}  Nd6 {[%clk 0:00:04]} 59. Bxg6 {[%clk 0:00:07]}  f5 {[%clk 0:00:04]} 60. Bg5+ {[%clk 0:00:06]}  Ke6 {[%clk 0:00:05]} 61. Bf4 {[%clk 0:00:06]}  Nf7 {[%clk 0:00:05]} 62. Bxf7+ {[%clk 0:00:04]}  Kxf7 {[%clk 0:00:05]} 63. Kf3 {[%clk 0:00:04]}  Ra4 {[%clk 0:00:06]} 64. Kg2 {[%clk 0:00:03]}  Kf6 {[%clk 0:00:07]} 65. Kf3 {[%clk 0:00:03]}  Rc4 {[%clk 0:00:07]} 66. Kg2 {[%clk 0:00:03]}  Ke6 {[%clk 0:00:07]} 67. Kf3 {[%clk 0:00:03]}  Kf6 {[%clk 0:00:08]} 68. Kg2 {[%clk 0:00:04]}  Rc2 {[%clk 0:00:09]} 69. Kf3 {[%clk 0:00:04]}  Rb2 {[%clk 0:00:09]} 70. Kg2 {[%clk 0:00:04]}  Rb3 {[%clk 0:00:10]} 71. Kh3 {[%clk 0:00:04]}  Kf7 {[%clk 0:00:10]} 72. Kg2 {[%clk 0:00:04]}  Rd3 {[%clk 0:00:11]} 73. Kg1 {[%clk 0:00:04]}  Kf6 {[%clk 0:00:11]} 74. Kg2 {[%clk 0:00:05]}  g5 {[%clk 0:00:12]} 75. hxg6 {[%clk 0:00:04]}  Kxg6 {[%clk 0:00:12]} 76. Be3 {[%clk 0:00:04]}  Rb3 {[%clk 0:00:13]} 77. Kf3 {[%clk 0:00:04]}  Kf6 {[%clk 0:00:13]} 78. Ke2 {[%clk 0:00:05]}  Ke6 {[%clk 0:00:14]} 79. Kf3 {[%clk 0:00:05]}  Kd5 {[%clk 0:00:14]} 80. Kf4 {[%clk 0:00:06]}  Ke6 {[%clk 0:00:14]} 81. Kf3 {[%clk 0:00:06]}  Kd5 {[%clk 0:00:15]} 82. Kf4 {[%clk 0:00:06]}  Ke6 {[%clk 0:00:15]} 83. Kf3 {[%clk 0:00:06]} 1/2-1/2


[Site "https://www.chess.com"]

[Event "Titled Tuesday Blitz June 21 Late 2022"]
[White "Stanisz, Patryk"]
[Black "Petrovic, Aleksa"]
[WhiteFideId "1123106"]
[BlackFideId "967629"]
[WhiteElo "1833"]
[BlackElo "2117"]
[Result "0-1"]
[Round "09"]
[TimeControl "180+1"]
[Date "2022.06.22"]
[WhiteClock "0:01:08"]
[BlackClock "0:01:26"]

1. d4 {[%clk 0:02:59]}  Nf6 {[%clk 0:02:59]} 2. c4 {[%clk 0:02:58]}  e6 {[%clk 0:02:59]} 3. Nc3 {[%clk 0:02:58]}  Bb4 {[%clk 0:02:58]} 4. Qc2 {[%clk 0:02:57]}  O-O {[%clk 0:02:55]} 5. a3 {[%clk 0:02:56]}  Bxc3+ {[%clk 0:02:55]} 6. Qxc3 {[%clk 0:02:57]}  b6 {[%clk 0:02:54]} 7. Bg5 {[%clk 0:02:54]}  Bb7 {[%clk 0:02:55]} 8. Nf3 {[%clk 0:02:54]}  d6 {[%clk 0:02:46]} 9. e3 {[%clk 0:02:47]}  Nbd7 {[%clk 0:02:46]} 10. Be2 {[%clk 0:02:46]}  h6 {[%clk 0:02:45]} 11. Bh4 {[%clk 0:02:36]}  g5 {[%clk 0:02:45]} 12. Bg3 {[%clk 0:02:35]}  Ne4 {[%clk 0:02:45]} 13. Qc2 {[%clk 0:02:36]}  f5 {[%clk 0:02:40]} 14. O-O-O {[%clk 0:02:15]}  Qf6 {[%clk 0:02:23]} 15. Rhg1 {[%clk 0:02:01]}  Rac8 {[%clk 0:02:09]} 16. Nd2 {[%clk 0:02:00]}  Nxd2 {[%clk 0:01:58]} 17. Rxd2 {[%clk 0:01:55]}  f4 {[%clk 0:01:57]} 18. exf4 {[%clk 0:01:46]}  gxf4 {[%clk 0:01:58]} 19. Bxf4 {[%clk 0:01:46]}  Qxf4 {[%clk 0:01:58]} 20. Qg6+ {[%clk 0:01:47]}  Kh8 {[%clk 0:01:55]} 21. Bd3 {[%clk 0:01:46]}  Nf6 {[%clk 0:01:46]} 22. h4 {[%clk 0:01:41]}  Be4 {[%clk 0:01:33]} 23. g3 {[%clk 0:01:13]}  Qxd2+ {[%clk 0:01:28]} 24. Kxd2 {[%clk 0:01:14]}  Bxg6 {[%clk 0:01:28]} 25. Bxg6 {[%clk 0:01:15]}  Kg7 {[%clk 0:01:28]} 26. Bd3 {[%clk 0:01:11]}  e5 {[%clk 0:01:28]} 27. d5 {[%clk 0:01:10]}  e4 {[%clk 0:01:27]} 28. Be2 {[%clk 0:01:10]}  Rce8 {[%clk 0:01:27]} 29. Ke3 {[%clk 0:01:10]}  h5 {[%clk 0:01:25]} 30. b4 {[%clk 0:01:08]}  Ng4+ {[%clk 0:01:25]} 31. Bxg4 {[%clk 0:01:08]}  hxg4 {[%clk 0:01:26]} 0-1


[Site "https://www.chess.com"]